[Event "Late-Titled-Tuesday-Blitz-February-06-2024"]
[Site "Chess.com"]
[Date "2024.02.06"]
[Round "5"]
[White "Redzishchess"]
[Black "PawnEatingZombie"]
[Result "1-0"]
[WhiteElo "2527"]
[BlackElo "2208"]
[TimeControl "180+1"]
[EndTime "14:55:47 PST"]
[Termination "Redzishchess won by resignation"]

1. d4 {[%clk 0:03:00.9]} 1... Nf6 {[%clk 0:02:58.9]} 2. c4 {[%clk 0:03:00.8]}
2... g6 {[%clk 0:02:59.4]} 3. g3 {[%clk 0:03:00.7]} 3... Bg7 {[%clk 0:02:59.6]}
4. Bg2 {[%clk 0:03:01.1]} 4... O-O {[%clk 0:03:00]} 5. Nc3 {[%clk 0:03:01.2]}
5... d6 {[%clk 0:03:00.5]} 6. Nf3 {[%clk 0:03:01.6]} 6... Nc6 {[%clk 0:03:00.8]}
7. O-O {[%clk 0:03:01.9]} 7... e5 {[%clk 0:03:00.7]} 8. dxe5 {[%clk 0:03:02.8]}
8... dxe5 {[%clk 0:02:59.6]} 9. Bg5 {[%clk 0:03:02.9]} 9... Qxd1 {[%clk
0:02:47.8]} 10. Rfxd1 {[%clk 0:03:02]} 10... h6 {[%clk 0:02:44.7]} 11. Bxf6
{[%clk 0:03:00.6]} 11... Bxf6 {[%clk 0:02:44.9]} 12. Nd5 {[%clk 0:03:00.9]}
12... Bd8 {[%clk 0:02:44.5]} 13. b4 {[%clk 0:02:54.9]} 13... Re8 {[%clk
0:02:25.5]} 14. b5 {[%clk 0:02:51.9]} 14... Na5 {[%clk 0:02:23.9]} 15. Rac1
{[%clk 0:02:45.2]} 15... Bf5 {[%clk 0:02:14.2]} 16. Nd2 {[%clk 0:02:30.6]} 16...
c6 {[%clk 0:02:10.5]} 17. Nc3 {[%clk 0:01:26]} 17... Bg5 {[%clk 0:01:39.2]} 18.
bxc6 {[%clk 0:01:16.6]} 18... bxc6 {[%clk 0:01:38.7]} 19. Nce4 {[%clk
0:01:08.2]} 19... Bxe4 {[%clk 0:01:35.4]} 20. Nxe4 {[%clk 0:01:05]} 20... Bxc1
{[%clk 0:01:30.4]} 21. Nf6+ {[%clk 0:01:05.6]} 21... Kg7 {[%clk 0:01:29.5]} 22.
Nxe8+ {[%clk 0:01:05.9]} 22... Rxe8 {[%clk 0:01:29.7]} 23. Rxc1 {[%clk
0:01:06.8]} 23... Rd8 {[%clk 0:01:23.5]} 24. Rc2 {[%clk 0:00:44.7]} 24... Rd4
{[%clk 0:01:22.5]} 25. e3 {[%clk 0:00:38.5]} 25... Rxc4 {[%clk 0:01:19.9]} 26.
Rxc4 {[%clk 0:00:38.5]} 26... Nxc4 {[%clk 0:01:20.5]} 27. Bxc6 {[%clk
0:00:39.4]} 27... Kf6 {[%clk 0:01:15.8]} 28. Kf1 {[%clk 0:00:39.5]} 28... Ke6
{[%clk 0:01:13.5]} 29. Ke2 {[%clk 0:00:38.5]} 29... Kd6 {[%clk 0:01:12.8]} 30.
Be8 {[%clk 0:00:38.7]} 30... Ke7 {[%clk 0:01:09.2]} 31. Bb5 {[%clk 0:00:38.4]}
31... Nd6 {[%clk 0:01:08.9]} 32. Ba6 {[%clk 0:00:37]} 32... f5 {[%clk
0:01:00.2]} 33. Kd3 {[%clk 0:00:36]} 33... Ke6 {[%clk 0:01:00.3]} 34. Bc4+
{[%clk 0:00:32.6]} 34... Kd7 {[%clk 0:01:00.2]} 35. Bd5 {[%clk 0:00:31.3]} 35...
Kc7 {[%clk 0:00:52.5]} 36. f4 {[%clk 0:00:31.4]} 36... exf4 {[%clk 0:00:41.1]}
37. exf4 {[%clk 0:00:32.3]} 37... Kd7 {[%clk 0:00:22.4]} 38. Kd4 {[%clk
0:00:32.3]} 38... Nb5+ {[%clk 0:00:15]} 39. Kc5 {[%clk 0:00:15.9]} 39... Nc3
{[%clk 0:00:14.4]} 40. Bf7 {[%clk 0:00:12.9]} 40... g5 {[%clk 0:00:14.5]} 41.
fxg5 {[%clk 0:00:07.2]} 41... hxg5 {[%clk 0:00:14.2]} 42. h4 {[%clk 0:00:06.5]}
42... f4 {[%clk 0:00:12.6]} 43. gxf4 {[%clk 0:00:02.4]} 43... gxh4 {[%clk
0:00:11]} 44. Kd4 {[%clk 0:00:02.8]} 44... Ne2+ {[%clk 0:00:04.2]} 45. Ke3
{[%clk 0:00:03]} 45... Nxf4 {[%clk 0:00:03.9]} 46. Kxf4 {[%clk 0:00:02.7]} 46...
Kc6 {[%clk 0:00:03]} 47. Kg4 {[%clk 0:00:02.8]} 47... Kc5 {[%clk 0:00:03.1]} 48.
Kxh4 {[%clk 0:00:03.1]} 48... Kb4 {[%clk 0:00:03.9]} 49. Kg4 {[%clk 0:00:03.4]}
1-0

[Event "Late-Titled-Tuesday-Blitz-February-06-2024"]
[Site "Chess.com"]
[Date "2024.02.06"]
[Round "5"]
[White "dropstoneDP"]
[Black "Andrei_Skvortsov"]
[Result "1/2-1/2"]
[WhiteElo "2993"]
[BlackElo "2691"]
[TimeControl "180+1"]
[EndTime "14:55:52 PST"]
[Termination "Game drawn by repetition"]

1. e4 {[%clk 0:02:59.3]} 1... c5 {[%clk 0:03:00.4]} 2. Nf3 {[%clk 0:02:59.1]}
2... d6 {[%clk 0:03:00.8]} 3. d4 {[%clk 0:02:59.6]} 3... cxd4 {[%clk 0:03:01.5]}
4. Nxd4 {[%clk 0:03:00.5]} 4... Nf6 {[%clk 0:03:01]} 5. Nc3 {[%clk 0:03:00.9]}
5... g6 {[%clk 0:03:01.6]} 6. Be3 {[%clk 0:02:51.3]} 6... Bg7 {[%clk 0:03:01.9]}
7. f3 {[%clk 0:02:51.6]} 7... O-O {[%clk 0:03:02.5]} 8. Qd2 {[%clk 0:02:51.7]}
8... d5 {[%clk 0:03:03.2]} 9. e5 {[%clk 0:02:50.8]} 9... Ne8 {[%clk 0:03:03.8]}
10. f4 {[%clk 0:02:50.8]} 10... f6 {[%clk 0:03:04.5]} 11. e6 {[%clk 0:02:46.3]}
11... f5 {[%clk 0:03:04.4]} 12. O-O-O {[%clk 0:02:44.7]} 12... Nf6 {[%clk
0:03:04.5]} 13. Kb1 {[%clk 0:02:28.7]} 13... Nc6 {[%clk 0:02:54.4]} 14. Bb5
{[%clk 0:02:28.9]} 14... Qd6 {[%clk 0:02:42.8]} 15. Rhe1 {[%clk 0:02:19.1]}
15... a6 {[%clk 0:02:15.9]} 16. Ba4 {[%clk 0:02:17]} 16... Ne4 {[%clk
0:02:08.9]} 17. Nxe4 {[%clk 0:02:14.8]} 17... fxe4 {[%clk 0:02:07.9]} 18. c4
{[%clk 0:02:04.8]} 18... Nxd4 {[%clk 0:02:06.1]} 19. Bxd4 {[%clk 0:02:03.7]}
19... Bxd4 {[%clk 0:01:27.4]} 20. Qxd4 {[%clk 0:02:00.7]} 20... b5 {[%clk
0:01:21.6]} 21. cxb5 {[%clk 0:01:35.7]} 21... Bxe6 {[%clk 0:01:09.6]} 22. Bb3
{[%clk 0:01:35.2]} 22... axb5 {[%clk 0:00:59.6]} 23. Bxd5 {[%clk 0:01:24.3]}
23... Bxd5 {[%clk 0:00:59.3]} 24. Qxd5+ {[%clk 0:01:25.2]} 24... Qxd5 {[%clk
0:00:59.7]} 25. Rxd5 {[%clk 0:01:26.1]} 25... Rxf4 {[%clk 0:01:00]} 26. Rxb5
{[%clk 0:01:15.3]} 26... Rf2 {[%clk 0:00:33.7]} 27. Rxe4 {[%clk 0:01:11.1]}
27... Rxg2 {[%clk 0:00:33.9]} 28. Rxe7 {[%clk 0:01:09.8]} 28... Rxh2 {[%clk
0:00:33.2]} 29. a3 {[%clk 0:01:09.6]} 29... Rh4 {[%clk 0:00:21.7]} 30. Rbb7
{[%clk 0:01:08.8]} 30... Kh8 {[%clk 0:00:21.3]} 31. Ka2 {[%clk 0:01:08]} 31...
Rh3 {[%clk 0:00:19.8]} 32. Rbc7 {[%clk 0:01:01.6]} 32... g5 {[%clk 0:00:13.4]}
33. Rb7 {[%clk 0:00:50.8]} 33... g4 {[%clk 0:00:10.9]} 34. Rg7 {[%clk
0:00:37.2]} 34... h5 {[%clk 0:00:10.3]} 35. Rh7+ {[%clk 0:00:36]} 35... Kg8
{[%clk 0:00:10.1]} 36. Rbg7+ {[%clk 0:00:36.3]} 36... Kf8 {[%clk 0:00:10.3]} 37.
Rg5 {[%clk 0:00:37]} 37... Ra6 {[%clk 0:00:08]} 38. Rhxh5 {[%clk 0:00:33.1]}
38... Rxh5 {[%clk 0:00:08.8]} 39. Rxh5 {[%clk 0:00:34]} 39... Rg6 {[%clk
0:00:08.2]} 40. Rh2 {[%clk 0:00:23.2]} 40... Ke7 {[%clk 0:00:08]} 41. Kb3 {[%clk
0:00:22.7]} 41... Ke6 {[%clk 0:00:07.8]} 42. Kc4 {[%clk 0:00:23.2]} 42... Ke5
{[%clk 0:00:07.5]} 43. b4 {[%clk 0:00:23.7]} 43... g3 {[%clk 0:00:07.8]} 44. Rg2
{[%clk 0:00:23.7]} 44... Ke4 {[%clk 0:00:07.3]} 45. a4 {[%clk 0:00:23.9]} 45...
Kf3 {[%clk 0:00:07.9]} 46. Rg1 {[%clk 0:00:24.1]} 46... Kf2 {[%clk 0:00:08]} 47.
Rd1 {[%clk 0:00:19.4]} 47... Re6 {[%clk 0:00:07.3]} 48. a5 {[%clk 0:00:14.1]}
48... g2 {[%clk 0:00:05.1]} 49. b5 {[%clk 0:00:10.2]} 49... Re1 {[%clk
0:00:05.3]} 50. Rd2+ {[%clk 0:00:10.4]} 50... Re2 {[%clk 0:00:05.8]} 51. Rd1
{[%clk 0:00:10.8]} 51... Re1 {[%clk 0:00:06.3]} 52. Rd2+ {[%clk 0:00:10.9]}
52... Re2 {[%clk 0:00:06.8]} 53. Rd1 {[%clk 0:00:10.3]} 53... Re1 {[%clk
0:00:07.4]} 1/2-1/2

[Event "Late-Titled-Tuesday-Blitz-February-06-2024"]
[Site "Chess.com"]
[Date "2024.02.06"]
[Round "5"]
[White "ElDivis"]
[Black "SchmakAttack"]
[Result "0-1"]
[WhiteElo "2420"]
[BlackElo "2763"]
[TimeControl "180+1"]
[EndTime "14:56:00 PST"]
[Termination "SchmakAttack won on time"]

1. d4 {[%clk 0:03:00.9]} 1... Nf6 {[%clk 0:02:59.9]} 2. Nf3 {[%clk 0:03:00.4]}
2... d5 {[%clk 0:02:56.8]} 3. c4 {[%clk 0:02:59.7]} 3... e6 {[%clk 0:02:57]} 4.
e3 {[%clk 0:02:59.1]} 4... a6 {[%clk 0:02:53.4]} 5. b3 {[%clk 0:02:56.1]} 5...
c5 {[%clk 0:02:52.8]} 6. cxd5 {[%clk 0:02:55.8]} 6... exd5 {[%clk 0:02:52.5]} 7.
Bb2 {[%clk 0:02:54.2]} 7... Nc6 {[%clk 0:02:52.3]} 8. Nc3 {[%clk 0:02:40]} 8...
Bd6 {[%clk 0:02:50.7]} 9. dxc5 {[%clk 0:02:38.8]} 9... Bxc5 {[%clk 0:02:51.6]}
10. Be2 {[%clk 0:02:36.6]} 10... O-O {[%clk 0:02:49.2]} 11. O-O {[%clk
0:02:36.1]} 11... Re8 {[%clk 0:02:40.5]} 12. Rc1 {[%clk 0:02:34.8]} 12... Ba7
{[%clk 0:02:39.7]} 13. h3 {[%clk 0:02:13.6]} 13... Bf5 {[%clk 0:02:12.3]} 14.
Nh4 {[%clk 0:02:04]} 14... Be6 {[%clk 0:02:07.6]} 15. Nf3 {[%clk 0:01:54.4]}
15... Rc8 {[%clk 0:01:56.7]} 16. Na4 {[%clk 0:01:42.9]} 16... Ne4 {[%clk
0:01:56.2]} 17. Nc3 {[%clk 0:01:29.3]} 17... Ng5 {[%clk 0:01:23]} 18. Nxg5
{[%clk 0:00:50.7]} 18... Qxg5 {[%clk 0:01:23.9]} 19. Bg4 {[%clk 0:00:42.2]}
19... d4 {[%clk 0:01:03.3]} 20. exd4 {[%clk 0:00:30]} 20... Nxd4 {[%clk
0:00:57.2]} 21. Ne4 {[%clk 0:00:27.8]} 21... Rxc1 {[%clk 0:00:50.8]} 22. Nxg5
{[%clk 0:00:18.8]} 22... Rxd1 {[%clk 0:00:50.1]} 23. Rxd1 {[%clk 0:00:13.8]}
23... Bxg4 {[%clk 0:00:49.5]} 24. hxg4 {[%clk 0:00:14.7]} 24... Rd8 {[%clk
0:00:48.7]} 25. Kf1 {[%clk 0:00:09.7]} 25... f6 {[%clk 0:00:48.7]} 26. Nf3
{[%clk 0:00:09.9]} 26... Ne6 {[%clk 0:00:48.1]} 27. Rxd8+ {[%clk 0:00:09.2]}
27... Nxd8 {[%clk 0:00:49]} 28. Bd4 {[%clk 0:00:08.7]} 28... Bb8 {[%clk
0:00:45.6]} 29. Ke2 {[%clk 0:00:09.2]} 29... Nc6 {[%clk 0:00:45.7]} 30. Be3
{[%clk 0:00:09.7]} 30... Kf7 {[%clk 0:00:45.7]} 31. Bd2 {[%clk 0:00:07.6]} 31...
Ke6 {[%clk 0:00:43.2]} 32. Kd3 {[%clk 0:00:07.9]} 32... Kd5 {[%clk 0:00:42.9]}
33. Bc3 {[%clk 0:00:08.2]} 33... b5 {[%clk 0:00:39.8]} 34. a3 {[%clk 0:00:08]}
34... Bd6 {[%clk 0:00:38.6]} 35. a4 {[%clk 0:00:07.7]} 35... Bc5 {[%clk
0:00:32.8]} 36. axb5 {[%clk 0:00:07.4]} 36... axb5 {[%clk 0:00:33.7]} 37. g5
{[%clk 0:00:07.6]} 37... fxg5 {[%clk 0:00:26.6]} 38. Nxg5 {[%clk 0:00:08.5]}
38... h6 {[%clk 0:00:19.9]} 39. Ne4 {[%clk 0:00:07.4]} 39... Bf8 {[%clk
0:00:17.3]} 40. f3 {[%clk 0:00:07.6]} 40... h5 {[%clk 0:00:15.8]} 41. Nf2 {[%clk
0:00:05.3]} 41... g6 {[%clk 0:00:15]} 42. Ne4 {[%clk 0:00:05.5]} 42... Be7
{[%clk 0:00:14.7]} 43. Bb2 {[%clk 0:00:05.7]} 43... Nb4+ {[%clk 0:00:13.8]} 44.
Ke2 {[%clk 0:00:05.2]} 44... Nc6 {[%clk 0:00:13.1]} 45. Kd3 {[%clk 0:00:04.6]}
45... Ne5+ {[%clk 0:00:12.7]} 46. Bxe5 {[%clk 0:00:03.8]} 46... Kxe5 {[%clk
0:00:13.6]} 47. Nc3 {[%clk 0:00:04.2]} 47... b4 {[%clk 0:00:13.3]} 48. Ne2
{[%clk 0:00:04.4]} 48... g5 {[%clk 0:00:09.8]} 49. Kc4 {[%clk 0:00:04.7]} 49...
g4 {[%clk 0:00:10.3]} 50. fxg4 {[%clk 0:00:04.2]} 50... hxg4 {[%clk 0:00:10.5]}
51. Kd3 {[%clk 0:00:04.9]} 51... Bd6 {[%clk 0:00:09.3]} 52. Ke3 {[%clk
0:00:05.4]} 52... Bc5+ {[%clk 0:00:09.5]} 53. Kd3 {[%clk 0:00:05.3]} 53... Bd6
{[%clk 0:00:09.1]} 54. Ke3 {[%clk 0:00:05.2]} 54... Kf5 {[%clk 0:00:08.9]} 55.
Nc1 {[%clk 0:00:05.3]} 55... Bf4+ {[%clk 0:00:08.8]} 0-1

[Event "Late-Titled-Tuesday-Blitz-February-06-2024"]
[Site "Chess.com"]
[Date "2024.02.06"]
[Round "5"]
[White "ChadBiryani"]
[Black "Fh2411"]
[Result "0-1"]
[WhiteElo "2453"]
[BlackElo "2608"]
[TimeControl "180+1"]
[EndTime "14:56:03 PST"]
[Termination "Fh2411 won by checkmate"]

1. Nf3 {[%clk 0:02:47.5]} 1... d5 {[%clk 0:02:59.1]} 2. c4 {[%clk 0:02:45.9]}
2... c6 {[%clk 0:02:59.6]} 3. cxd5 {[%clk 0:02:45]} 3... cxd5 {[%clk 0:03:00.5]}
4. d4 {[%clk 0:02:45.6]} 4... Nc6 {[%clk 0:02:59.8]} 5. Nc3 {[%clk 0:02:43.7]}
5... Nf6 {[%clk 0:03:00.4]} 6. Bf4 {[%clk 0:02:42.3]} 6... Bf5 {[%clk 0:03:01]}
7. Qb3 {[%clk 0:02:41.6]} 7... Na5 {[%clk 0:02:57.8]} 8. Qa4+ {[%clk 0:02:41.3]}
8... Bd7 {[%clk 0:02:58.4]} 9. Qc2 {[%clk 0:02:37.3]} 9... e6 {[%clk 0:02:58.5]}
10. e3 {[%clk 0:02:37.8]} 10... Rc8 {[%clk 0:02:59]} 11. Bd3 {[%clk 0:02:36]}
11... Bb4 {[%clk 0:02:59.5]} 12. O-O {[%clk 0:02:35.6]} 12... h6 {[%clk
0:02:57.9]} 13. Rfc1 {[%clk 0:02:34.2]} 13... O-O {[%clk 0:02:49.2]} 14. Ne5
{[%clk 0:02:32.3]} 14... a6 {[%clk 0:02:43]} 15. a3 {[%clk 0:02:28.4]} 15...
Bxc3 {[%clk 0:02:39.9]} 16. bxc3 {[%clk 0:02:27.2]} 16... b5 {[%clk 0:02:23.9]}
17. h3 {[%clk 0:02:17.1]} 17... Qe7 {[%clk 0:02:10.7]} 18. Qb2 {[%clk 0:02:14]}
18... Nc4 {[%clk 0:02:07.4]} 19. Nxc4 {[%clk 0:02:13.2]} 19... dxc4 {[%clk
0:02:02.2]} 20. Be2 {[%clk 0:02:13.3]} 20... Bc6 {[%clk 0:02:02.3]} 21. a4
{[%clk 0:02:05.2]} 21... Nd5 {[%clk 0:01:45.9]} 22. axb5 {[%clk 0:01:56.2]}
22... axb5 {[%clk 0:01:38.5]} 23. Bg3 {[%clk 0:01:52.1]} 23... Nb6 {[%clk
0:01:38.3]} 24. Ra6 {[%clk 0:01:45.3]} 24... Qb7 {[%clk 0:01:36.2]} 25. Ra2
{[%clk 0:01:32.6]} 25... Na4 {[%clk 0:01:29.4]} 26. Qb4 {[%clk 0:01:23.3]} 26...
Bxg2 {[%clk 0:01:29]} 27. Kh2 {[%clk 0:01:08.8]} 27... Bd5 {[%clk 0:01:07.5]}
28. Rg1 {[%clk 0:01:02.2]} 28... Kh8 {[%clk 0:01:04.9]} 29. Be5 {[%clk
0:00:53.7]} 29... f6 {[%clk 0:01:04.8]} 30. Bf4 {[%clk 0:00:45.3]} 30... Rfd8
{[%clk 0:00:54.5]} 31. Bh5 {[%clk 0:00:31.2]} 31... Rd7 {[%clk 0:00:45.9]} 32.
h4 {[%clk 0:00:21.1]} 32... Be4 {[%clk 0:00:39.8]} 33. Ra3 {[%clk 0:00:20.5]}
33... Qd5 {[%clk 0:00:39.1]} 34. Be2 {[%clk 0:00:18.5]} 34... g5 {[%clk
0:00:37.7]} 35. hxg5 {[%clk 0:00:17.3]} 35... hxg5 {[%clk 0:00:38.6]} 36. Rxg5
{[%clk 0:00:10.3]} 36... fxg5 {[%clk 0:00:34.8]} 37. Be5+ {[%clk 0:00:10.9]}
37... Kg8 {[%clk 0:00:34.1]} 38. Ra1 {[%clk 0:00:09.9]} 38... Rh7+ {[%clk
0:00:30.7]} 39. Kg3 {[%clk 0:00:10.1]} 39... Qd7 {[%clk 0:00:31]} 40. Bg4 {[%clk
0:00:07.8]} 40... Bd5 {[%clk 0:00:20.7]} 41. e4 {[%clk 0:00:06.5]} 41... Bxe4
{[%clk 0:00:19.9]} 42. Re1 {[%clk 0:00:06.4]} 42... Bd5 {[%clk 0:00:20.1]} 43.
Qb1 {[%clk 0:00:06]} 43... Qf7 {[%clk 0:00:19.3]} 44. Re3 {[%clk 0:00:04.5]}
44... Rf8 {[%clk 0:00:18.4]} 45. f3 {[%clk 0:00:04.2]} 45... Rh4 {[%clk
0:00:17.4]} 46. Qg1 {[%clk 0:00:02.9]} 46... Nb2 {[%clk 0:00:15.3]} 47. Kf2
{[%clk 0:00:01.3]} 47... Nd3+ {[%clk 0:00:14.9]} 48. Ke2 {[%clk 0:00:01.8]}
48... Rxg4 {[%clk 0:00:12.8]} 49. Qxg4 {[%clk 0:00:02.7]} 49... Qg6 {[%clk
0:00:10.4]} 50. Qh3 {[%clk 0:00:03]} 50... Nc1+ {[%clk 0:00:09.9]} 51. Kd2
{[%clk 0:00:03.4]} 51... Nb3+ {[%clk 0:00:10.5]} 52. Ke2 {[%clk 0:00:03.7]}
52... Qc2+ {[%clk 0:00:11]} 53. Kf1 {[%clk 0:00:04.4]} 53... Qc1+ {[%clk
0:00:11.4]} 54. Kf2 {[%clk 0:00:05.1]} 54... Qd2+ {[%clk 0:00:11.7]} 55. Re2
{[%clk 0:00:05.9]} 55... Qd3 {[%clk 0:00:09.9]} 56. Qh8+ {[%clk 0:00:05.5]}
56... Kf7 {[%clk 0:00:10.6]} 57. Qg7+ {[%clk 0:00:06.2]} 57... Ke8 {[%clk
0:00:11.3]} 58. Bd6 {[%clk 0:00:06.4]} 58... Qxf3+ {[%clk 0:00:11.6]} 59. Kg1
{[%clk 0:00:06.9]} 59... Qh1# {[%clk 0:00:11.9]} 0-1

[Event "Late-Titled-Tuesday-Blitz-February-06-2024"]
[Site "Chess.com"]
[Date "2024.02.06"]
[Round "5"]
[White "Walter_White_Poland"]
[Black "Englishman_18"]
[Result "1/2-1/2"]
[WhiteElo "2393"]
[BlackElo "2189"]
[TimeControl "180+1"]
[EndTime "14:56:05 PST"]
[Termination "Game drawn - insufficient material"]

1. d4 {[%clk 0:03:00.9]} 1... Nf6 {[%clk 0:02:58.9]} 2. Bf4 {[%clk 0:03:00.4]}
2... g6 {[%clk 0:02:57.5]} 3. e3 {[%clk 0:03:00.1]} 3... Bg7 {[%clk 0:02:56.9]}
4. h3 {[%clk 0:03:00.1]} 4... O-O {[%clk 0:02:56.5]} 5. Nf3 {[%clk 0:02:59.6]}
5... d6 {[%clk 0:02:54.7]} 6. Be2 {[%clk 0:02:59.5]} 6... Nbd7 {[%clk
0:02:46.7]} 7. O-O {[%clk 0:02:58.9]} 7... c5 {[%clk 0:02:46.7]} 8. c3 {[%clk
0:02:58.2]} 8... b6 {[%clk 0:02:46.2]} 9. Nbd2 {[%clk 0:02:57.9]} 9... Bb7
{[%clk 0:02:45.9]} 10. a4 {[%clk 0:02:57.7]} 10... a6 {[%clk 0:02:36.3]} 11. Bh2
{[%clk 0:02:57]} 11... Rc8 {[%clk 0:02:30.5]} 12. Re1 {[%clk 0:02:56.2]} 12...
Qc7 {[%clk 0:02:06.2]} 13. Bd3 {[%clk 0:02:49.6]} 13... Rfe8 {[%clk 0:01:37]}
14. Qe2 {[%clk 0:02:48.1]} 14... e5 {[%clk 0:01:35.7]} 15. Bxa6 {[%clk 0:02:28]}
15... e4 {[%clk 0:01:18.7]} 16. Ng5 {[%clk 0:02:26]} 16... Bxa6 {[%clk
0:01:08.1]} 17. Qxa6 {[%clk 0:02:26.9]} 17... h6 {[%clk 0:01:08]} 18. Nxf7
{[%clk 0:02:13.8]} 18... Kxf7 {[%clk 0:01:06.1]} 19. Nc4 {[%clk 0:02:07.8]}
19... Bf8 {[%clk 0:00:59.6]} 20. a5 {[%clk 0:01:51.6]} 20... Qc6 {[%clk
0:00:27.3]} 21. Nxb6 {[%clk 0:01:38.9]} 21... Nxb6 {[%clk 0:00:25.3]} 22. Qxb6
{[%clk 0:01:36.2]} 22... Qxb6 {[%clk 0:00:19]} 23. axb6 {[%clk 0:01:37.1]} 23...
Nd7 {[%clk 0:00:18]} 24. Ra7 {[%clk 0:01:27.8]} 24... Red8 {[%clk 0:00:17.5]}
25. b7 {[%clk 0:01:23.4]} 25... Rb8 {[%clk 0:00:16.5]} 26. Rea1 {[%clk
0:01:06.4]} 26... Ke6 {[%clk 0:00:15.5]} 27. R1a6 {[%clk 0:01:03.4]} 27... c4
{[%clk 0:00:14.1]} 28. f3 {[%clk 0:00:59.4]} 28... exf3 {[%clk 0:00:12.5]} 29.
gxf3 {[%clk 0:00:59.8]} 29... Be7 {[%clk 0:00:11.3]} 30. e4 {[%clk 0:00:59.7]}
30... Nf8 {[%clk 0:00:09.8]} 31. e5 {[%clk 0:00:51.6]} 31... Rd7 {[%clk
0:00:09.6]} 32. exd6 {[%clk 0:00:49.2]} 32... Bxd6 {[%clk 0:00:08.7]} 33. Bxd6
{[%clk 0:00:44.9]} 33... Rxd6 {[%clk 0:00:08.2]} 34. Rxd6+ {[%clk 0:00:45.5]}
34... Kxd6 {[%clk 0:00:08.1]} 35. Ra6+ {[%clk 0:00:44.5]} 35... Kd5 {[%clk
0:00:06.7]} 36. Ra5+ {[%clk 0:00:43.7]} 36... Kd6 {[%clk 0:00:06]} 37. Rb5
{[%clk 0:00:38.2]} 37... Nd7 {[%clk 0:00:05]} 38. b3 {[%clk 0:00:34.3]} 38...
cxb3 {[%clk 0:00:04.4]} 39. Rxb3 {[%clk 0:00:35.2]} 39... Kc7 {[%clk 0:00:04.4]}
40. Kf2 {[%clk 0:00:27.5]} 40... Rxb7 {[%clk 0:00:04.5]} 41. Rxb7+ {[%clk
0:00:27.7]} 41... Kxb7 {[%clk 0:00:05.4]} 42. Ke3 {[%clk 0:00:28.1]} 42... Kc6
{[%clk 0:00:06]} 43. Ke4 {[%clk 0:00:28.6]} 43... Kd6 {[%clk 0:00:06]} 44. c4
{[%clk 0:00:28.9]} 44... Nf6+ {[%clk 0:00:05.3]} 45. Kf4 {[%clk 0:00:29.4]}
45... Nh5+ {[%clk 0:00:05.2]} 46. Ke4 {[%clk 0:00:28.9]} 46... Nf6+ {[%clk
0:00:04.9]} 47. Kf4 {[%clk 0:00:28.8]} 47... Nd7 {[%clk 0:00:04.9]} 48. h4
{[%clk 0:00:27.3]} 48... Ke6 {[%clk 0:00:04.9]} 49. Kg4 {[%clk 0:00:21.9]} 49...
Nb6 {[%clk 0:00:04.1]} 50. c5 {[%clk 0:00:21.3]} 50... Nd5 {[%clk 0:00:04.1]}
51. c6 {[%clk 0:00:19.7]} 51... Kf6 {[%clk 0:00:04.2]} 52. f4 {[%clk 0:00:18.2]}
52... Ke6 {[%clk 0:00:04]} 53. h5 {[%clk 0:00:17.6]} 53... gxh5+ {[%clk
0:00:01.3]} 54. Kxh5 {[%clk 0:00:17.8]} 54... Kf5 {[%clk 0:00:01.7]} 55. Kxh6
{[%clk 0:00:17.3]} 55... Kxf4 {[%clk 0:00:02.6]} 56. Kg6 {[%clk 0:00:16.1]}
56... Ke4 {[%clk 0:00:03.5]} 57. Kf7 {[%clk 0:00:16.3]} 57... Kxd4 {[%clk
0:00:04.4]} 58. Ke6 {[%clk 0:00:16.6]} 58... Kc5 {[%clk 0:00:05.3]} 59. Kd7
{[%clk 0:00:16.7]} 59... Kc4 {[%clk 0:00:04.2]} 60. Kd6 {[%clk 0:00:16.7]} 60...
Kd4 {[%clk 0:00:04.5]} 61. Ke6 {[%clk 0:00:16.3]} 61... Kc5 {[%clk 0:00:04.4]}
62. Kd7 {[%clk 0:00:16.7]} 62... Kd4 {[%clk 0:00:04.5]} 63. Kd6 {[%clk
0:00:16.4]} 63... Kc4 {[%clk 0:00:04.7]} 64. c7 {[%clk 0:00:17]} 64... Nxc7
{[%clk 0:00:04.5]} 1/2-1/2